Cogmind - Beta 14 *** ADVENTURER MODE // 2024.10.11 @ 18:20:12 // Winter2019/RPGLIKE Player: Gallgagger Result: Self-destructed Performance ------------- Evolutions (9) 4500 Regions Visited (19) 3800 Robots Destroyed (644) 3220 Value Destroyed (34510) 34510 Prototype IDs (24) 480 Alien Tech Used (0) 0 Bonus (24314) 24314 TOTAL SCORE: 70824 Bonus ------- Triggered High Security 500 High Alert Combat Kills 7756 Follower Combat Kills 1152 Network Hubs Disabled 400 Met Warlord at Base 500 MAIN.C Attacked Warlord 500 Warlord Defense Kills 11252 Built Enhanced Grunts 300 Met R17 at Cetus 500 Met R17 at Research 2000 Friendly Fire -546 Cogmind --------- Core Integrity 248/2600 Matter 600/600 Energy 627/635 System Corruption 3% Temperature Cool (9) Movement Treading (120) Location -1/Access Parts ------- > --- POWER (3) -------- Neutrino Core Light Antimatter Reactor Quantum Reactor > --- PROPULSION (6) --- Tri-treads Tri-treads > --- UTILITY (9) ------ Siege Articulator Core Analyzer Improved Armor Integrity Analyzer Kinecellerator Centrium Light Armor Plating Centrium Medium Armor Plating Improved Force Field Improved Dynamic Insulation System High-powered Tractor Beam > --- WEAPON (5) ------- Advanced KE Penetrator Advanced KE Penetrator Siege Cannon > --- INVENTORY (3) ---- Stasis Beam Peak State ------------ > --- POWER ------------ Neutrino Core Light Antimatter Reactor Quantum Reactor > --- PROPULSION ------- Tri-treads Tri-treads > --- UTILITY ---------- Siege Articulator Core Analyzer Improved Armor Integrity Analyzer Kinecellerator Layered Heavy Armor Plating Advanced Shield Generator Improved Dynamic Insulation System High-powered Tractor Beam > --- WEAPON ----------- Improved Potential Cannon Siege Cannon > --- INVENTORY -------- Centrium Light Armor Plating Centrium Medium Armor Plating Advanced KE Penetrator [Rating: 151] Favorites ----------- Power Neutrino Core Engine Light Ion Engine Power Core Neutrino Core Reactor Quantum Reactor Propulsion Tri-treads Treads Tri-treads Leg Cargo Legs Wheel Wheel Flight Unit Flight Unit Utility Siege Articulator Device Siege Articulator Processor Core Analyzer Protection Layered Heavy Armor Plating Weapon Advanced KE Penetrator Energy Gun EM Pulse Gun Energy Cannon Particle Cannon Ballistic Gun Advanced KE Penetrator Ballistic Cannon Siege Cannon Launcher Missile Launcher Special Weapon CPS Tube Build | -11 -10 -10 -10 -7 -7 -5 -5 -5 -5 -5 -4 -4 -4 -4 -3 -3 -3 -2 -1 ------- Run | Yrd Mat Min Sub Rec Scr Fac Ext Cet Arc Hub Fac Upp Upp War Pro Res Tes Res Acc Slots Evolved 19 | 4 2 . 1 2 . 5 . 2 . . 2 . . . . 1 . . . Power 2 | 1 . . . . . 1 . . . . . . . . . . . . . Propulsion 5 | 1 2 . . . . 2 . . . . . . . . . . . . . Utility 8 | 1 . . . 2 . 2 . 1 . . 1 . . . . 1 . . . Weapon 4 | 1 . . 1 . . . . 1 . . 1 . . . . . . . . Parts Attached 115 | 6 10 4 4 5 27 7 3 3 . 2 8 2 3 3 2 1 17 2 6 Power 20 | 2 . . . 1 5 2 3 1 . . 1 2 1 . . . . . 2 Engine 4 | 2 . . . . 2 . . . . . . . . . . . . . . Core 9 | . . . . 1 3 1 3 . . . . 1 . . . . . . . Reactor 7 | . . . . . . 1 . 1 . . 1 1 1 . . . . . 2 Propulsion 16 | 2 5 . 1 1 6 1 . . . . . . . . . . . . . Treads 4 | . . . . . 3 1 . . . . . . . . . . . . . Leg 5 | . . . 1 1 3 . . . . . . . . . . . . . . Wheel 2 | 2 . . . . . . . . . . . . . . . . . . . Hover . | . . . . . . . . . . . . . . . . . . . . Flight 5 | . 5 . . . . . . . . . . . . . . . . . . Utility 50 | . 1 4 2 2 12 4 . 1 . 2 6 . 2 1 2 1 5 2 3 Device 19 | . . . . 1 6 1 . . . . 2 . 1 1 1 . 4 2 . Storage . | . . . . . . . . . . . . . . . . . . . . Processor 6 | . . . . 1 1 . . . . . 2 . . . . 1 1 . . Hackware . | . . . . . . . . . . . . . . . . . . . . Protection 25 | . 1 4 2 . 5 3 . 1 . 2 2 . 1 . 1 . . . 3 Artifact . | . . . . . . . . . . . . . . . . . . . . Weapon 29 | 2 4 . 1 1 4 . . 1 . . 1 . . 2 . . 12 . 1 Energy Gun 2 | 1 . . . . . . . . . . . . . . . . 1 . . Energy Cannon 8 | . 4 . . 1 . . . . . . . . . . . . 3 . . Ballistic Gun 12 | 1 . . . . . . . 1 . . 1 . . 1 . . 7 . 1 Ballistic Cannon 3 | . . . . . 1 . . . . . . . . 1 . . 1 . . Launcher 2 | . . . 1 . 1 . . . . . . . . . . . . . . Special Weapon 2 | . . . . . 2 . . . . . . . . . . . . . . Impact Weapon . | . . . . . . . . . . . . . . . . . . . . Slashing Weapon . | . . . . . . . . . . . . . . . . . . . . Piercing Weapon . | . . . . . . . . . . . . . . . . . . . . Special Melee Weapon . | . . . . . . . . . . . . . . . . . . . . Unidentified Prototypes 19 | . . . 2 . 4 . . 2 . 1 1 . . . 1 . 7 1 . Parts Lost 3 | . . . . . 2 . . . . . . . . . . . . . 1 Power . | . . . . . . . . . . . . . . . . . . . . Propulsion . | . . . . . . . . . . . . . . . . . . . . Utility 2 | . . . . . 1 . . . . . . . . . . . . . 1 Weapon 1 | . . . . . 1 . . . . . . . . . . . . . . Highest Loss Streak 2 | . . . . . 2 . . . . . . . . . . . . . 1 To Critical Strikes . | . . . . . . . . . . . . . . . . . . . . Average Slot Usage (%) 69 | . 86 99 74 76 73 61 61 62 65 63 64 68 68 67 68 68 68 69 68 Engine 2 | . 22 20 13 9 2 . . . . . . . . . . . . . . Core 6 | . . . . 2 10 15 14 13 10 10 9 4 4 4 4 4 4 4 4 Reactor 4 | . . . . . . . 1 1 5 5 4 9 9 9 9 8 8 8 8 Treads 7 | . . . . . 8 11 11 10 10 10 9 9 9 9 9 8 8 8 8 Leg 1 | . . . 5 9 6 . . . . . . . . . . . . . . Flight 3 | . 28 40 14 9 . . . . . . . . . . . . . . . Device 16 | . . . . . 16 17 22 21 20 18 20 22 22 22 22 21 21 21 21 Processor 2 | . . . . . 1 . . . . . 1 4 4 4 4 4 8 8 8 Protection 8 | . 10 19 20 19 11 7 5 9 10 10 7 4 4 4 4 4 4 4 4 Energy Cannon 3 | . 16 20 13 16 6 . . . . . . . . . . . . . . Ballistic Gun 4 | . 2 . . . . . . . 5 5 5 9 9 9 9 8 7 8 7 Ballistic Cannon 3 | . . . . . 4 5 5 5 5 5 4 4 4 3 4 4 4 4 4 Launcher 1 | . . . 6 5 1 . . . . . . . . . . . . . . Peak Build Rating 151 | 6 11 16 43 56 73 99 101 120 120 120 131 132 133 134 139 141 151 146 146 Average Rating 101 | 4 9 13 41 47 65 91 99 109 120 118 123 131 132 133 134 134 141 142 141 On Entrance 92 | . 6 11 16 43 56 69 99 100 120 120 115 131 131 133 134 134 141 142 142 Naked Turns . | . . . . . . . . . . . . . . . . . . . . Heaviest Build 123 | 10 15 20 45 56 69 85 96 115 115 115 114 111 116 116 116 116 123 123 123 Greatest Support 124 | 20 21 21 65 82 98 114 114 119 119 119 119 119 119 119 119 119 119 124 124 Greatest Overweight (x) 4 | . 1 . . . 4 . . . . . . . . . . . 1 1 . Average Overweight (x) . | . . . . . . . . . . . . . . . . . . . . Largest Inventory Capacity 3 | . 1 2 2 2 3 3 3 3 3 3 3 3 3 3 3 3 3 3 3 Average Capacity 2 | . . 1 2 2 2 3 3 3 3 3 3 3 3 3 3 3 3 3 3 Most Carried 3 | . 1 2 2 2 3 3 3 3 3 3 3 3 3 3 3 3 3 3 3 Average Carried 2 | . . 1 1 2 2 1 3 3 3 2 2 3 3 2 3 3 2 3 2 Final Capacity 3 | . 1 2 2 2 3 3 3 3 3 3 3 3 3 3 3 3 3 3 3 Final Carried 3 | . . 2 2 2 3 3 3 3 3 2 3 3 3 3 3 3 3 3 1 Class Distribution -------------------- 67% | Scavenger-Gunner 14% | Tank 6% | Gunner 4% | Hacker-Gunner Dominant Class ---------------- Mutant | -10/Materials Sprinter | -10/Mines Tank | -10/Subcaves Tank | -7/Recycling Scavenger-Gunner | -7/Scraptown Scavenger-Gunner | -5/Factory Scavenger-Gunner | -5/Extension Scavenger-Gunner | -5/Cetus Scavenger-Gunner | -5/Archives Scavenger-Gunner | -5/Hub_04(d) Scavenger-Gunner | -4/Factory Scavenger-Gunner | -4/Upper Caves Scavenger-Gunner | -4/Upper Caves Scavenger-Gunner | -4/Warlord Scavenger-Gunner | -3/Proximity Caves Scavenger-Gunner | -3/Research Scavenger-Gunner | -3/Testing Scavenger-Gunner | -2/Research Scavenger-Gunner | -1/Access Resources | -11 -10 -10 -10 -7 -7 -5 -5 -5 -5 -5 -4 -4 -4 -4 -3 -3 -3 -2 -1 ----------- Run | Yrd Mat Min Sub Rec Scr Fac Ext Cet Arc Hub Fac Upp Upp War Pro Res Tes Res Acc Matter Collected 16898 | 189 198 40 78 51 3835 490 464 226 100 1648 1747 315 489 1543 551 390 1158 919 2467 Remotely 16293 | . . . . 51 3740 490 464 226 100 1648 1747 315 489 1543 551 390 1158 919 2462 Salvage Created 24613 | . 459 3 711 203 5087 321 435 100 . 1463 2737 321 331 3559 1074 291 1465 1664 4389 Parts 1318 | . 39 . 59 9 312 28 27 3 . 77 169 4 22 105 53 17 94 91 209 Haulers Intercepted 3 | . 1 . . . . . . . . 1 . . . . . . . . 1 Recyclers Shooed 1 | . 1 . . . . . . . . . . . . . . . . . . Parts Field Recycled . | . . . . . . . . . . . . . . . . . . . . Retrieved Matter . | . . . . . . . . . . . . . . . . . . . . Parts Self-Destructed 100 | . . . 23 . . . . . . . . 3 22 . 52 . . . . Prevented 2 | . . . . . . . . . . . . . . . 2 . . . . Kills | -11 -10 -10 -10 -7 -7 -5 -5 -5 -5 -5 -4 -4 -4 -4 -3 -3 -3 -2 -1 ------- Run | Yrd Mat Min Sub Rec Scr Fac Ext Cet Arc Hub Fac Upp Upp War Pro Res Tes Res Acc Combat Hostiles Destroyed 601 | . 15 2 24 4 122 15 13 4 1 34 62 1 16 83 27 6 40 32 100 Melee 3 | . . . . . . . . . . . 1 . . 1 . . . . 1 Guns 77 | . 3 . . . . . . . . 2 22 . 6 5 12 2 6 2 17 Cannons 507 | . 11 2 21 3 121 14 13 4 1 32 39 1 10 76 14 4 34 30 77 AOE 5 | . . . 3 . . . . . . . . . . . . . . . 2 Classes Destroyed 38 | . 6 1 3 . 12 3 1 . . 3 2 . 1 4 . . 2 . . Worker 23 | . 1 . . . . . 1 . . 5 6 . . . . . 1 5 4 Builder 22 | . . . . . . 1 . . . 5 6 . . . . 2 1 4 3 Tunneler 3 | . . . . . . . . . . 1 . . . . . . . . 2 Hauler 3 | . 1 . . . . . . . . 1 . . . . . . . . 1 Recycler 13 | . 1 . . . . 1 1 . . 3 2 . . . . . . 2 3 Minesweeper 1 | . . . . . . . . . . . . . 1 . . . . . . Operator 12 | . . . . . 2 1 3 . . 1 1 . . . . 1 2 1 . Turret 2 | . . . 2 . . . . . . . . . . . . . . . . Watcher 18 | . 1 . . . . 2 1 . . 4 7 . . . . 1 . 1 1 Swarmer 69 | . 9 . 8 . . 6 . . . . 11 . 10 5 9 . . . 11 Saboteur 12 | . . . . . . . . . . . 1 . . 4 1 . . . 6 Grunt 165 | . 6 . . . . 5 5 2 . 12 17 . 6 35 11 1 6 19 40 Brawler 20 | . . . . . . . . . . 2 . . . 8 2 . . 1 7 Duelist 14 | . . . . . . . . . . 1 . . . 1 1 . . . 11 Protector 8 | . . . . . . . . . . . . . . 6 . . . . 2 Researcher 1 | . . . . . . . . . . . . . . . . . 1 . . Sentry 40 | . . . 1 4 . 1 4 . 1 7 11 1 . . 2 . 4 3 1 Demolisher 3 | . . . . . . . . . . . . . . 3 . . . . . Specialist 9 | . . . . . . . . . . 1 2 . . 3 . . 3 . . Hunter 26 | . . . . . . 1 2 . . 3 5 . . 3 . 3 2 2 5 Programmer 65 | . . . . . . 2 . . . 4 12 . . 7 . . 21 8 11 Heavy 3 | . . . . . . . . . . . 3 . . . . . . . . Behemoth 5 | . . . . . . . 2 . . 1 . . . . 1 1 . . . Cetus Guard 2 | . . . . . . . . 2 . . . . . . . . . . . Lightning 3 | . . . . . . . . . . 3 . . . . . . . . . Investigator 1 | . . . . . . . . . . . . . . . . . . . 1 Striker 9 | . . . . . . . . . . . . . . 5 . 1 2 . 1 Executioner 8 | . . . . . . . . . . . . . . 3 . . . . 5 Alpha 7 1 | . . . . . . . . . . . . . . . . . 1 . . Protovariant G 1 | . . . . . . . . . . . . . . . . . 1 . . Subdweller 15 | . . . 15 . . . . . . . . . . . . . . . . Bolteater 7 | . . . . . 7 . . . . . . . . . . . . . . Federalist 13 | . . . . . 13 . . . . . . . . . . . . . . Explorer 13 | . . . . . 13 . . . . . . . . . . . . . . Ranger 8 | . . . . . 8 . . . . . . . . . . . . . . Guru 10 | . . . . . 10 . . . . . . . . . . . . . . Scientist 6 | . . . . . 6 . . . . . . . . . . . . . . Scrapper 46 | . . . . . 46 . . . . . . . . . . . . . . Elite 24 | . . . . . 24 . . . . . . . . . . . . . . Zionite 1 | . . . . . 1 . . . . . . . . . . . . . . Tinkerer 5 | . . . . . 5 . . . . . . . . . . . . . . Assembled 2 | . . 2 . . . . . . . . . . . . . . . . . Savage 1 | . . . . . 1 . . . . . . . . . . . . . . Best Kill Streak 34 | . 5 2 6 1 34 5 4 2 1 9 11 1 5 17 5 3 6 15 20 Combat Bots Only 33 | . 4 2 4 1 33 5 3 2 1 5 8 1 5 17 5 3 5 8 19 Max Kills in Single Turn 3 | . 1 1 3 1 2 2 2 2 1 3 2 1 2 3 2 2 2 3 2 Gunslinging 1 | . . . . . . . . . . . . . 1 . . . . . . Exploded 3 | . . . 3 . . . . . . . . . . . . . . . 1 Melee 1 | . . . . . . . . . . . 1 . . 1 . . . . 1 Uniques/NPCs Destroyed 1 | . . . . . 1 . . . . . . . . . . . . . . Triborg (-7/Scraptown) Combat | -11 -10 -10 -10 -7 -7 -5 -5 -5 -5 -5 -4 -4 -4 -4 -3 -3 -3 -2 -1 -------- Run | Yrd Mat Min Sub Rec Scr Fac Ext Cet Arc Hub Fac Upp Upp War Pro Res Tes Res Acc Hostile Shots Fired 2439 | . 24 1 131 45 306 53 20 17 . 112 324 2 43 209 81 56 187 136 692 Missed 690 | . 12 1 41 16 73 12 5 6 . 23 116 . 11 60 14 21 73 32 174 Damage Taken 21114 | . 79 16 1156 159 4223 527 219 169 14 1670 2130 24 257 1768 869 399 1230 877 5328 Core 14266 | . 54 10 648 95 3011 358 150 107 11 1111 1358 18 178 1205 608 257 855 574 3658 Absorbed by Shields 6981 | . . . . . 72 26 79 61 5 589 801 8 91 640 319 151 524 925 2690 Reduced by Siege Mode 486 | . . . . . 144 18 2 6 . 58 37 . 5 37 17 8 30 17 107 Redirected to Core 13747 | . 49 10 632 91 2875 358 137 107 11 1103 1311 18 148 1147 597 247 832 543 3531 Redirected to Shielding 11 | . 9 2 . . . . . . . . . . . . . . . . . Ignored by Resistances 11585 | . 27 4 334 51 1181 159 81 63 5 603 1160 15 164 1125 549 260 713 782 4309 Regen/Repaired (Parts) 304 | . . . . . 304 . . . . . . . . . . . . . . Core Remaining (%) 78 | 100 . . . . 41 . . . . 52 . . . . 87 . 94 98 . Volleys Fired 1360 | . 28 8 105 8 283 30 31 14 6 122 155 13 31 111 45 33 80 73 184 Largest 4 | . 2 2 3 3 4 1 1 1 2 2 2 1 2 3 2 2 3 3 2 Hottest 211 | . 136 136 172 211 211 70 70 70 105 105 70 70 70 140 70 70 140 140 70 Shots Fired 1704 | . 56 16 202 17 332 30 31 14 10 127 180 13 42 126 66 45 94 86 217 Gun 383 | . 18 . . . . . . . 4 16 88 11 23 26 42 25 35 24 71 Cannon 1315 | . 38 16 199 17 329 30 31 14 6 111 92 2 19 100 24 20 59 62 146 Launcher 3 | . . . 3 . . . . . . . . . . . . . . . . Special 3 | . . . . . 3 . . . . . . . . . . . . . . Kinetic 1345 | . 9 . . . 255 30 31 14 10 127 180 13 42 126 66 45 94 86 217 Thermal 344 | . 38 16 199 17 74 . . . . . . . . . . . . . . Explosive 3 | . . . 3 . . . . . . . . . . . . . . . . Electromagnetic 9 | . 9 . . . . . . . . . . . . . . . . . . Robot Hit Streak 100 | . 11 2 43 58 62 32 35 19 29 48 36 10 21 25 66 100 48 27 43 Robot Miss Streak 3 | . 1 1 1 . 2 . 1 . . 1 2 2 3 2 . 1 2 1 1 Penetration Max 2 | . . . . . 1 1 2 1 . 2 2 . 1 2 2 1 2 2 2 Secondary Targets 5 | . . . . . . . . . . . . . 1 . 1 1 . . 2 Max Gunslinging Chain 1 | . . . . . . . . . . . . . 1 . 1 1 . . 1 Shots Hit Robots 1393 | . 31 3 125 15 280 29 28 12 10 108 153 11 35 104 56 40 83 75 195 Core Hits 722 | . 18 2 44 8 121 13 14 5 2 53 82 4 19 81 31 13 51 45 116 Critical Kills 31 | . 1 . . 1 1 . . . . . 12 . 2 1 1 2 1 2 7 Critical Parts Destroyed 39 | . . . . . . . . . 2 2 10 . 5 4 5 1 4 3 3 Critical Strikes 190 | . 1 . . 1 27 2 2 3 2 11 32 . 11 22 11 4 17 10 34 Meltdown 3 | . 1 . . 1 1 . . . . . . . . . . . . . . Destroy 72 | . . . . . . . . . 2 3 23 . 7 6 8 3 5 5 10 Blast 115 | . . . . . 26 2 2 3 . 8 9 . 4 16 3 1 12 5 24 Melee Attacks . | . . . . . . . . . . . . . . . . . . . . Impact . | . . . . . . . . . . . . . . . . . . . . Slashing . | . . . . . . . . . . . . . . . . . . . . Piercing . | . . . . . . . . . . . . . . . . . . . . Sneak Attacks . | . . . . . . . . . . . . . . . . . . . . Combat Hostiles . | . . . . . . . . . . . . . . . . . . . . Follow-up Attacks . | . . . . . . . . . . . . . . . . . . . . Damage Inflicted 138468 | . 646 61 2743 324 22852 3658 3553 1583 652 13164 14286 569 2909 17791 5097 2701 10028 9801 26050 Guns 12196 | . 128 . . . . . . . 127 436 3003 343 595 767 1329 781 1258 925 2504 Cannons 124875 | . 518 61 2554 324 22852 3658 3553 1583 525 12394 11250 226 2314 17024 3768 1920 8770 8509 23072 Explosions 1257 | . . . 189 . . . . . . 334 . . . . . . . 341 393 Melee . | . . . . . . . . . . . . . . . . . . . . Ramming 140 | . . . . . . . . . . . 33 . . . . . . 26 81 Kinetic 132124 | . 59 . . . 21431 3658 3553 1583 652 12830 14253 569 2909 17791 5097 2701 10028 9434 25576 Thermal 4878 | . 518 61 2554 324 1421 . . . . . . . . . . . . . . Explosive 923 | . . . 189 . . . . . . . . . . . . . . 341 393 Electromagnetic 403 | . 69 . . . . . . . . 334 . . . . . . . . . Impact . | . . . . . . . . . . . . . . . . . . . . Slashing . | . . . . . . . . . . . . . . . . . . . . Piercing . | . . . . . . . . . . . . . . . . . . . . Highest Corruption 22 | . . . . . . . . . . 22 1 1 1 1 1 . 1 3 3 Average Corruption 1 | . . . . . . . . . . 2 1 1 1 1 1 . 1 2 2 Corruption Purged . | . . . . . . . . . . . . . . . . . . . . Corruption Blocked . | . . . . . . . . . . . . . . . . . . . . Effects 85 | . . . . . . . . . . 14 13 11 10 8 10 . 8 7 4 Message Errors 18 | . . . . . . . . . . 2 1 2 3 1 3 . 2 3 1 Matter Fused 17 | . . . . . . . . . . 1 4 3 . 1 3 . 3 . 2 Heat Flow Errors 9 | . . . . . . . . . . 1 . 1 1 . 3 . 1 2 . Energy Discharges 8 | . . . . . . . . . . 1 2 1 2 1 . . . . 1 Parts Rejected 2 | . . . . . . . . . . . . . . 2 . . . . . Data Loss (minor) 14 | . . . . . . . . . . 2 3 3 2 2 . . 1 1 . Data Loss (major) 7 | . . . . . . . . . . . 2 1 2 . 1 . 1 . . Misfires 6 | . . . . . . . . . . 4 . . . 1 . . . 1 . Alerts 1 | . . . . . . . . . . 1 . . . . . . . . . Weapon Failures 3 | . . . . . . . . . . 2 1 . . . . . . . . Overload Shots . | . . . . . . . . . . . . . . . . . . . . Overflow Damage 19011 | . 11 . 38 . 2866 790 670 136 . 1694 1974 . 268 2254 347 263 1758 1965 3977 Projectiles 18983 | . 11 . 38 . 2866 790 670 136 . 1694 1974 . 268 2254 347 263 1758 1937 3977 Explosions 28 | . . . . . . . . . . . . . . . . . . 28 . Melee . | . . . . . . . . . . . . . . . . . . . . Knockbacks 364 | . . . . . 60 14 2 2 . 43 25 . 6 62 5 11 31 25 78 Impact 1 | . . . . . . . . . . . . . . . . . . . 1 Kinetic 324 | . . . . . 58 12 2 2 . 37 25 . 6 50 4 10 29 21 68 Secondary 39 | . . . . . 2 2 . . . 6 . . . 12 1 1 2 4 9 Self-Inflicted Damage 255 | . . . . . . . . . . 137 . . . . . . . 49 69 Shots 4 | . . . . . . . . . . 2 . . . . . . . 1 1 Rammed 13 | . . . . . . . . . . . 2 . . . . . . 2 9 Targets Rammed 13 | . . . . . . . . . . . 2 . . . . . . 2 9 Kicked . | . . . . . . . . . . . . . . . . . . . . Crushed . | . . . . . . . . . . . . . . . . . . . . Highest Temperature 214 | . 147 210 3 99 99 10 . . . 182 . 142 151 19 182 . 214 171 18 Average Temperature 55 | . 49 89 3 31 25 10 . . . 92 . 71 98 8 72 . 112 86 6 Received Heat Transfer 3810 | . 18 . 291 60 1118 129 39 6 . 122 294 6 21 386 336 16 85 112 771 Siege Activations 237 | . . . . . 54 12 12 5 4 27 33 1 3 10 6 4 27 19 20 Total Turns 3420 | . . . . . 781 94 120 33 22 401 458 5 39 238 68 44 520 154 443 Longest Duration 156 | . . . . . 156 22 26 9 8 55 79 5 19 64 16 21 83 27 61 Robots Corrupted 7 | . . . . . 1 1 . . . . . . . 1 1 . . . 3 Combat Hostiles 7 | . . . . . 1 1 . . . . . . . 1 1 . . . 3 Parts Fried 15 | . . . . . 1 1 . . . 2 . . . 5 . . 1 2 3 Impact Corruptions 16 | . . . . . 1 2 . . . . . . . 3 1 . 2 3 4 Robots Melted 3 | . 1 . . 1 1 . . . . . . . . . . . . . . Combat Hostiles 2 | . 1 . . 1 . . . . . . . . . . . . . . . Parts Melted 21 | . 3 . 6 1 11 . . . . . . . . . . . . . . Heat Transferred 7909 | . 925 111 4551 555 1767 . . . . . . . . . . . . . . Parts Sabotaged 5 | . . . . . . . . . . . 1 . . 1 . . . . 3 Parts Stolen . | . . . . . . . . . . . . . . . . . . . . Parts Stripped . | . . . . . . . . . . . . . . . . . . . . Power Chain Reactions . | . . . . . . . . . . . . . . . . . . . . Alert | -11 -10 -10 -10 -7 -7 -5 -5 -5 -5 -5 -4 -4 -4 -4 -3 -3 -3 -2 -1 ------- Run | Yrd Mat Min Sub Rec Scr Fac Ext Cet Arc Hub Fac Upp Upp War Pro Res Tes Res Acc Peak Influence 3521 | . 481 158 . 140 . 232 362 212 192 690 1094 . . . . 193 428 1163 3521 Initial 610 | . . 158 . . . . 97 . 47 55 193 . . . . 18 68 25 610 Average 393 | . 220 147 . 64 . 104 128 102 141 296 511 . . . . 86 227 503 1793 Maximum Alert Level 5 | . 2 . . . . 1 1 1 . 2 3 . . . . . 2 4 5 Low Security (%) 50 | 100 45 100 . 100 . 90 90 87 100 37 6 . . . . 100 39 27 . Level 1 21 | . 43 . . . . 9 9 12 . 24 30 . . . . . 57 23 . Level 2 13 | . 11 . . . . . . . . 38 35 . . . . . 2 15 10 Level 3 7 | . . . . . . . . . . . 26 . . . . . . 29 17 Level 4 1 | . . . . . . . . . . . . . . . . . . 4 17 Level 5 . | . . . . . . . . . . . . . . . . . . . 8 High Security 4 | . . . . . . . . . . . . . . . . . . . 45 Max Security . | . . . . . . . . . . . . . . . . . . . . Squads Dispatched 78 | . 2 . . . . 4 1 1 . 5 11 . . . 1 8 10 4 31 Investigation 9 | . 2 . . . . 1 1 1 . . . . . . . 4 . . . Extermination 21 | . . . . . . 2 . . . 2 6 . . . . . 8 2 1 Reinforcement 17 | . . . . . . 1 . . . 2 4 . . . . 4 1 1 4 Assault 30 | . . . . . . . . . . 1 1 . . . 1 . . 1 26 Garrison 1 | . . . . . . . . . . . . . . . . . 1 . . Intercept . | . . . . . . . . . . . . . . . . . . . . Searches Triggered . | . . . . . . . . . . . . . . . . . . . . Construction Impeded 4 | . . . . . . . . . . 1 . . . . . . . 1 2 Haulers Reinforced 3 | . . . . . . . . . . 1 1 . . . . . . . 1 Active Scanning Responses . | . . . . . . . . . . . . . . . . . . . . Cargo Convoy Interrupts 1 | . . . . . . . . . . . 1 . . . . . . . . Stealth | -11 -10 -10 -10 -7 -7 -5 -5 -5 -5 -5 -4 -4 -4 -4 -3 -3 -3 -2 -1 --------- Run | Yrd Mat Min Sub Rec Scr Fac Ext Cet Arc Hub Fac Upp Upp War Pro Res Tes Res Acc Distress Signals 32 | . 3 . . . 1 . 3 2 . 4 4 . . . . 7 1 1 6 Communications Jammed . | . . . . . . . . . . . . . . . . . . . . Distress Signals . | . . . . . . . . . . . . . . . . . . . . Times Spotted 816 | . 19 1 29 4 121 20 19 14 4 55 92 1 16 109 28 22 50 39 173 Peak Tracking Total 27 | . 5 1 6 1 6 5 3 5 2 5 13 1 5 19 5 6 8 6 27 Tactical Retreats 31 | . 2 . . . 5 . 1 . . . 5 . 1 3 . 1 . 2 11 Traps | -11 -10 -10 -10 -7 -7 -5 -5 -5 -5 -5 -4 -4 -4 -4 -3 -3 -3 -2 -1 ------- Run | Yrd Mat Min Sub Rec Scr Fac Ext Cet Arc Hub Fac Upp Upp War Pro Res Tes Res Acc Traps Triggered 20 | . 2 . . . . 5 . . . 3 . . . . . 1 6 2 1 Indirectly . | . . . . . . . . . . . . . . . . . . . . Trap Hack Attempts . | . . . . . . . . . . . . . . . . . . . . Triggered . | . . . . . . . . . . . . . . . . . . . . Disarmed . | . . . . . . . . . . . . . . . . . . . . Reprogrammed 6 | . . . . . . . . . . . 6 . . . . . . . . Reused . | . . . . . . . . . . . . . . . . . . . . Traps Extracted . | . . . . . . . . . . . . . . . . . . . . Installed 9 | . . . . . . . . . . . . . 9 . . . . . . Triggered 17 | . . . . . . . . . . . 1 . . 16 . . . . . Machines | -11 -10 -10 -10 -7 -7 -5 -5 -5 -5 -5 -4 -4 -4 -4 -3 -3 -3 -2 -1 ---------- Run | Yrd Mat Min Sub Rec Scr Fac Ext Cet Arc Hub Fac Upp Upp War Pro Res Tes Res Acc Machines Disabled 102 | . 1 . 4 . 31 4 3 . 2 21 11 . . . . 3 8 7 7 Max in Single Turn 7 | . 1 . 3 . 2 1 2 . . 7 3 . . . . 1 1 2 2 Garrison Access 1 | . . . . . . . . . . . . . . . . . . 1 . Network Hub 2 | . . . . . . . . . . 2 . . . . . . . . . Machines Repaired . | . . . . . . . . . . . . . . . . . . . . Machines Dismantled . | . . . . . . . . . . . . . . . . . . . . Machines Sabotaged . | . . . . . . . . . . . . . . . . . . . . Overloaded Fab Kills . | . . . . . . . . . . . . . . . . . . . . Hacking | -11 -10 -10 -10 -7 -7 -5 -5 -5 -5 -5 -4 -4 -4 -4 -3 -3 -3 -2 -1 --------- Run | Yrd Mat Min Sub Rec Scr Fac Ext Cet Arc Hub Fac Upp Upp War Pro Res Tes Res Acc Machines Accessed 74 | . 4 1 1 11 1 3 19 1 . 11 7 . . . . 6 6 2 1 Terminals 53 | . 4 . . 4 . 1 19 1 . 10 5 . . . . 3 5 1 . Fabricators 7 | . . . . . . 2 . . . . 1 . . . . 2 1 . 1 Repair Stations . | . . . . . . . . . . . . . . . . . . . . Recycling Units 7 | . . . . 7 . . . . . . . . . . . . . . . Scanalyzers . | . . . . . . . . . . . . . . . . . . . . Garrison Access 4 | . . . . . . . . . . 1 1 . . . . 1 . 1 . Total Hacks 229 | . 13 1 3 16 6 8 38 3 . 36 47 . . . . 27 20 7 4 Successful 127 | . 8 1 3 10 6 3 19 . . 24 24 . . . . 16 11 1 1 Failed 102 | . 5 . . 6 . 5 19 3 . 12 23 . . . . 11 9 6 3 Catastrophic 17 | . . . . . . 3 4 1 . 3 5 . . . . . . 1 . Database Lockouts . | . . . . . . . . . . . . . . . . . . . . Manual 147 | . 10 . . 16 . 6 18 1 . 23 34 . . . . 18 12 5 4 Terminals 174 | . 13 . . 9 . 3 38 3 . 34 39 . . . . 16 16 3 . Fabricators 28 | . . . . . . 5 . . . . 6 . . . . 9 4 . 4 Repair Stations . | . . . . . . . . . . . . . . . . . . . . Recycling Units 7 | . . . . 7 . . . . . . . . . . . . . . . Scanalyzers . | . . . . . . . . . . . . . . . . . . . . Garrison Access 10 | . . . . . . . . . . 2 2 . . . . 2 . 4 . Terminal Hacks 70 | . 4 1 3 1 6 . 14 . . 14 15 . . . . 6 5 1 . Record 9 | . 1 . 3 . . . 1 . . 1 3 . . . . . . . . Robot Analysis 16 | . 2 . . 1 6 . 1 . . 5 . . . . . . 1 . . Prototype ID Bank 1 | . . . . . . . . . . . . . . . . . 1 . . Open Door 12 | . . 1 . . . . 11 . . . . . . . . . . . . Level Access Points 1 | . . . . . . . . . . . . . . . . . . 1 . Branch Access Points 4 | . . . . . . . 1 . . . 1 . . . . 1 1 . . Machine Index 1 | . . . . . . . . . . . . . . . . 1 . . . Terminal Index 1 | . . . . . . . . . . . 1 . . . . . . . . Fabricator Index 1 | . . . . . . . . . . . 1 . . . . . . . . Alert Level 8 | . 1 . . . . . . . . 2 3 . . . . 1 1 . . Unreport Threat 11 | . . . . . . . . . . 6 4 . . . . . 1 . . Locate Traps 1 | . . . . . . . . . . . 1 . . . . . . . . Reprogram Traps 1 | . . . . . . . . . . . 1 . . . . . . . . Security Status 1 | . . . . . . . . . . . . . . . . 1 . . . Zone Layout 2 | . . . . . . . . . . . . . . . . 2 . . . Fabricator Hacks 1 | . . . . . . . . . . . . . . . . 1 . . . Build 1 | . . . . . . . . . . . . . . . . 1 . . . Repair Station Hacks . | . . . . . . . . . . . . . . . . . . . . Recycling Unit Hacks . | . . . . . . . . . . . . . . . . . . . . Scanalyzer . | . . . . . . . . . . . . . . . . . . . . Garrison Access Hacks . | . . . . . . . . . . . . . . . . . . . . Unauthorized Hacks 56 | . 4 . . 9 . 3 5 . . 10 9 . . . . 9 6 . 1 Terminals 34 | . 4 . . 2 . 1 5 . . 9 5 . . . . 4 4 . . Botnet 33 | . 4 . . 2 . 1 5 . . 9 5 . . . . 3 4 . . Skim 1 | . . . . . . . . . . . . . . . . 1 . . . Fabricators 12 | . . . . . . 2 . . . . 3 . . . . 4 2 . 1 Prioritize 3 | . . . . . . 1 . . . . 1 . . . . 1 . . . Liberate 6 | . . . . . . 1 . . . . 1 . . . . 2 1 . 1 Fabnet 3 | . . . . . . . . . . . 1 . . . . 1 1 . . Repair Stations . | . . . . . . . . . . . . . . . . . . . . Recycling Units 7 | . . . . 7 . . . . . . . . . . . . . . . Tunnel 7 | . . . . 7 . . . . . . . . . . . . . . . Scanalyzers . | . . . . . . . . . . . . . . . . . . . . Garrison Access 3 | . . . . . . . . . . 1 1 . . . . 1 . . . Reprogram 3 | . . . . . . . . . . 1 1 . . . . 1 . . . Data Cores Recovered 7 | . . . . . . . 2 . . 1 1 . . . . 1 1 1 . Used 1 | . . . . . . . 1 . . . . . . . . . . . . Hacking Detections 49 | . 4 . . 3 . 3 12 1 . 9 6 . . . . 5 3 2 1 Full Trace Events 3 | . 1 . . . . 1 . 1 . . . . . . . . . . . Feedback Events . | . . . . . . . . . . . . . . . . . . . . Feedback Blocked . | . . . . . . . . . . . . . . . . . . . . Robot Schematics Acquired 2 | . . . . . . . . . . . . . . . . . 2 . . Robots Built 2 | . . . . . . . . . . . . . . . . 2 . . . Authchips . | . . . . . . . . . . . . . . . . . . . . Time 187 | . . . . . . . . . . . . . . . . 187 . . . Total Robot Build Rating 14 | . . . . . . . . . . . . . . . . 14 . . . Part Schematics Acquired 3 | . . . . . . . . . . . . . . . . . 3 . . Parts Built . | . . . . . . . . . . . . . . . . . . . . Authchips . | . . . . . . . . . . . . . . . . . . . . Time . | . . . . . . . . . . . . . . . . . . . . Total Part Build Rating . | . . . . . . . . . . . . . . . . . . . . Parts Repaired . | . . . . . . . . . . . . . . . . . . . . Time . | . . . . . . . . . . . . . . . . . . . . Parts Recycled . | . . . . . . . . . . . . . . . . . . . . Recycled Matter . | . . . . . . . . . . . . . . . . . . . . Retrieved Matter . | . . . . . . . . . . . . . . . . . . . . Retrieved Components . | . . . . . . . . . . . . . . . . . . . . Parts Scanalyzed . | . . . . . . . . . . . . . . . . . . . . Part Schematics Acquired . | . . . . . . . . . . . . . . . . . . . . Parts Damaged . | . . . . . . . . . . . . . . . . . . . . Bothacking | -11 -10 -10 -10 -7 -7 -5 -5 -5 -5 -5 -4 -4 -4 -4 -3 -3 -3 -2 -1 ------------ Run | Yrd Mat Min Sub Rec Scr Fac Ext Cet Arc Hub Fac Upp Upp War Pro Res Tes Res Acc Used RIF Installer . | . . . . . . . . . . . . . . . . . . . . Robots Hacked 5 | . . . . . . . . . . . . . . . . . . 1 4 Non-combat . | . . . . . . . . . . . . . . . . . . . . Combat 5 | . . . . . . . . . . . . . . . . . . 1 4 Robot Hacks Applied . | . . . . . . . . . . . . . . . . . . . . Relay Couplers Released 1 | . . . . . . . . . . . . . . . . . . 1 . Machine Destruction 1 | . . . . . . . . . . . . . . . . . . 1 . Fabnet Peak Effective % 6 | . . . . . . . . . . . . . . . . . . 6 2 Autooverrided 5 | . . . . . . . . . . . . . . . . . . 1 4 Robots Rewired 7 | . . . . . . . 6 . . . . . . . 1 . . . . Allies Hacked 3 | . . . . . . . . . . . 1 . . . . . . . 2 Hacks Repelled . | . . . . . . . . . . . . . . . . . . . . Allies | -11 -10 -10 -10 -7 -7 -5 -5 -5 -5 -5 -4 -4 -4 -4 -3 -3 -3 -2 -1 -------- Run | Yrd Mat Min Sub Rec Scr Fac Ext Cet Arc Hub Fac Upp Upp War Pro Res Tes Res Acc Total Allies 40 | . . 1 . . . . 20 5 . . 2 . . . 1 4 2 1 4 Largest Group 12 | . . 1 1 . . . 9 12 9 6 2 . . . 1 4 3 1 2 Highest-Rated Group 822 | . . 31 31 . . . 403 822 723 499 112 . . . 64 248 180 64 140 Highest-Rated Ally 159 | . . 31 31 . . . 159 159 159 96 56 . . . 64 68 68 64 82 Total Orders 3 | . . . . . . . . . . 1 . . . . . 1 1 . . STAY 3 | . . . . . . . . . . 1 . . . . . 1 1 . . Ally Attacks 194 | . . . 8 . . . 46 62 26 . 5 . . . 10 17 12 . 8 Total Damage 6042 | . . . 128 . . . 873 1929 858 . 178 . . . 267 881 741 . 187 Kills 24 | . . . 1 . . . 4 9 3 . . . . . 1 3 3 . . Allies Corrupted 1 | . . . . . . . . . . . 1 . . . . . . . . Allies Melted 3 | . . . . . 1 . 1 . . . 1 . . . . . . . . Intel | -11 -10 -10 -10 -7 -7 -5 -5 -5 -5 -5 -4 -4 -4 -4 -3 -3 -3 -2 -1 ------- Run | Yrd Mat Min Sub Rec Scr Fac Ext Cet Arc Hub Fac Upp Upp War Pro Res Tes Res Acc Robot Analysis Total 16 | . 2 . . 1 6 . 1 . . 5 . . . . . . 1 . . Derelict Logs Recovered 9 | . . 1 3 . 1 . . . . . . 2 2 . . . . . . Drone Launches . | . . . . . . . . . . . . . . . . . . . . Drone Recoveries . | . . . . . . . . . . . . . . . . . . . . Exploration | -11 -10 -10 -10 -7 -7 -5 -5 -5 -5 -5 -4 -4 -4 -4 -3 -3 -3 -2 -1 ------------- Run | Yrd Mat Min Sub Rec Scr Fac Ext Cet Arc Hub Fac Upp Upp War Pro Res Tes Res Acc Turns Passed 27139 | 31 399 426 3017 1058 4140 1010 1345 531 76 2100 2169 1228 1317 991 1267 1110 2426 1126 1372 Spaces Moved 17416 | 29 716 710 2146 757 2342 728 877 254 40 1252 1111 955 892 518 899 718 1257 650 565 Core 5 | 4 . . . . 1 . . . . . . . . . . . . . . Treads 11909 | . . . . . 1193 728 877 254 40 1252 1111 955 892 518 899 718 1257 650 565 Legs 3900 | . . . 1995 757 1148 . . . . . . . . . . . . . . Wheels 56 | 25 31 . . . . . . . . . . . . . . . . . . Hover . | . . . . . . . . . . . . . . . . . . . . Flight 1546 | . 685 710 151 . . . . . . . . . . . . . . . . Fastest Speed 31 | 50 31 31 31 130 120 120 120 120 120 120 120 120 120 120 120 120 120 120 120 Average Speed 115 | 75 36 31 123 130 130 120 120 120 120 120 120 120 120 120 120 120 129 124 120 Slowest Speed 250 | 80 95 31 130 130 250 120 120 120 120 120 120 120 120 120 120 120 230 230 120 Overloaded Moves . | . . . . . . . . . . . . . . . . . . . . Propulsion Burnouts . | . . . . . . . . . . . . . . . . . . . . Robots Hopped 18 | . 9 7 . . 2 . . . . . . . . . . . . . . Cave-ins Triggered . | . . . . . . . . . . . . . . . . . . . . Exploration Rate (%) 65 | 3 92 98 98 99 91 14 82 58 74 81 36 98 99 19 96 21 99 25 24 Regions Visited 19 Branch Regions 13 Pre-discovered Areas 10 | . . . 1 7 . . . . . . . 1 1 . . . . . . Known Exits Taken 5 | . . . . . . 1 1 . . . 1 . . . . 1 . 1 . Unknown Exits Taken 14 | 1 1 1 1 1 1 . . 1 1 1 . 1 1 1 1 . 1 . . Scrap Searched 30 | . . 2 12 . 5 . . . . . . 3 5 . 3 . . . . Spaces Dug 29 | . . 2 12 . . . . . . . 2 . . 10 . 2 . 1 . Terrain Destroyed 1461 | . . 4 38 1 150 19 32 7 12 421 182 16 45 86 49 23 65 159 152 Melee . | . . . . . . . . . . . . . . . . . . . . Projectile 958 | . . 4 16 1 150 19 32 7 12 100 140 16 45 86 49 23 65 82 111 AOE 503 | . . . 22 . . . . . . 321 42 . . . . . . 77 41 Terrain Rammed . | . . . . . . . . . . . . . . . . . . . . Walls Destroyed . | . . . . . . . . . . . . . . . . . . . . Machines Disabled . | . . . . . . . . . . . . . . . . . . . . Actions | -11 -10 -10 -10 -7 -7 -5 -5 -5 -5 -5 -4 -4 -4 -4 -3 -3 -3 -2 -1 --------- Run | Yrd Mat Min Sub Rec Scr Fac Ext Cet Arc Hub Fac Upp Upp War Pro Res Tes Res Acc Total 22630 | 34 786 891 2321 812 3107 832 1139 464 58 1724 1762 1023 1095 762 1020 921 1958 883 1038 Wait 2895 | . 33 172 14 29 332 54 118 171 10 321 381 48 136 80 21 137 521 104 213 Move 17361 | 28 697 695 2145 756 2337 727 876 253 39 1251 1110 954 891 517 898 717 1256 649 565 Hop 18 | . 9 7 . . 2 . . . . . . . . . . . . . . Pick Up 17 | . 1 3 3 . 5 1 . . . . 1 . . 1 . . 2 . . Fast Attach 51 | 6 4 1 1 3 7 3 . 2 . . 6 . 3 3 . 1 7 . 4 Attach 12 | . 2 . 2 . 3 1 . . . . . . . . . . 2 . 2 Detach 3 | . 1 . . . . . . . . . . . . . . . 2 . . Swap 52 | . 4 3 1 2 17 3 3 1 . 2 2 2 . . 2 . 8 2 . Drop 42 | . 1 2 3 . 17 2 2 . . 1 2 . 1 1 . . 10 . . Fire 1360 | . 28 8 105 8 283 30 31 14 6 122 155 13 31 111 45 33 80 73 184 Melee . | . . . . . . . . . . . . . . . . . . . . Ram . | . . . . . . . . . . . . . . . . . . . . Kick . | . . . . . . . . . . . . . . . . . . . . Crush 13 | . . . . . . . . . . . 2 . . . . . . 2 9 Escape Stasis . | . . . . . . . . . . . . . . . . . . . . Rewire 32 | . . . . . . . 25 . . . . 1 . . 5 . 1 . . Trap 9 | . . . . . . . . . . . . . 9 . . . . . . Miscellaneous 765 | . 6 . 47 14 104 11 84 23 3 27 103 5 24 49 49 33 69 53 61 Route ------- -11/Scrapyard -10/Materials (discovered 5 exits: [*Mat x3] / *Min x2) -10/Mines (discovered 3 exits: [*Mat x2] / *Sub) -10/Subcaves (discovered 3 exits: *Mat x2 / *Rec) -7/Recycling (discovered 2 exits: *Fac / *Scr) -7/Scraptown -5/Factory (discovered 2 exits: *Ext x2) -5/Extension (discovered 2 exits: *Fac / *Cet) -5/Cetus (discovered 2 exits: *Fac / [*Arc]) -5/Archives -5/Hub_04(d) (discovered 3 exits: *Fac x3) -4/Factory (discovered 3 exits: *Upp x2 / *Arm) -4/Upper Caves -4/Upper Caves (discovered 2 exits: *Res / [*War]) -4/Warlord -3/Proximity Caves -3/Research (discovered 2 exits: *Tes x2) -3/Testing -2/Research (discovered 3 exits: *Acc x3) -1/Access History --------- Turn | Location | Event 9 | -11/Scrapyard | Upgraded with Power slot (x1) 9 | -11/Scrapyard | Upgraded with Propulsion slot (x1) 9 | -11/Scrapyard | Upgraded with Utility slot (x1) 9 | -11/Scrapyard | Upgraded with Weapon slot (x1) 21 | -11/Scrapyard | Discovered new exit (range 14) 32 | -11/Scrapyard | Entered Materials 104 | -10/Materials | Discovered new exit (range 8) 114 | -10/Materials | Upgraded with Propulsion slot (x1) 260 | -10/Materials | Discovered new exit (range 10) 305 | -10/Materials | Build established: Mutant 323 | -10/Materials | Discovered new exit (range 15) 327 | -10/Materials | Discovered new exit (range 16) 393 | -10/Materials | Reached level 2 396 | -10/Materials | Discovered new exit (range 16) 407 | -10/Materials | Upgraded with Propulsion slot (x1) 431 | -10/Materials | Entered Mines 442 | -10/Mines | Received a Rocket Launcher from a helpful Derelict 471 | -10/Mines | Assembled infested the area 476 | -10/Mines | Assisted by a Guerilla fighting off Assembled 490 | -10/Mines | Met a Derelict who couldn't figure out how to use a Trap Extractor 684 | -10/Mines | Discovered new exit (range 9) 699 | -10/Mines | Learned Materials security intel 701 | -10/Mines | Build established: Sprinter 726 | -10/Mines | Received a Mining Laser from a helpful Derelict 816 | -10/Mines | Discovered new exit (range 4) 845 | -10/Mines | Discovered new exit (range 5) 857 | -10/Mines | Entered Subcaves 857 | -10/Subcaves | Accompanied by 1 ally 859 | -10/Subcaves | Reached level 3 861 | -10/Subcaves | Upgraded with Weapon slot (x1) 874 | -10/Subcaves | Learned location of Zion (-7) 874 | -10/Subcaves | Met a Zionite searching for "candidates" 948 | -10/Subcaves | A Subdweller sparked back to life 948 | -10/Subcaves | A Subdweller sparked back to life 971 | -10/Subcaves | Found Prototype Leg 971 | -10/Subcaves | Identified Cargo Legs 972 | -10/Subcaves | Attached Cargo Legs, gained temporary slots: Utility x2 1068 | -10/Subcaves | Visited 4L-MR0's lab 1081 | -10/Subcaves | Found Prototype Protection 1081 | -10/Subcaves | Identified Gun Armor 1083 | -10/Subcaves | Attached Gun Armor, gained temporary slots: Weapon x2 1150 | -10/Subcaves | Shifting Twisted Machinery released Sub. Beam Cannon 1152 | -10/Subcaves | Shifting Twisted Machinery released Battle Rifle 1273 | -10/Subcaves | Build established: Tank 1327 | -10/Subcaves | Shifting Twisted Machinery released Sub. Laser 1327 | -10/Subcaves | Shifting Twisted Machinery released Spk. Treads 1359 | -10/Subcaves | Learned 2 Materials zone layouts 1425 | -10/Subcaves | Disturbed a concealed Subdweller 1462 | -10/Subcaves | Shifting Twisted Machinery released Shrapnel Trap 1464 | -10/Subcaves | Shifting Twisted Machinery released Sub. Beam Cannon 1489 | -10/Subcaves | Identified exit to Materials 1541 | -10/Subcaves | Learned Materials security intel 1632 | -10/Subcaves | A swath of the cavern ceiling suddenly collapsed 2147 | -10/Subcaves | Visited Clippyterm 2151 | -10/Subcaves | Learned Research machine intel 2219 | -10/Subcaves | A swath of the cavern ceiling suddenly collapsed 2249 | -10/Subcaves | Discovered exit to Materials (range 3) 3029 | -10/Subcaves | Disturbed a concealed Subdweller 3251 | -10/Subcaves | Discovered new exit (range 12) 3266 | -10/Subcaves | Reached level 4 3874 | -10/Subcaves | Entered Recycling 3876 | -7/Recycling | Reached level 5 3876 | -7/Recycling | Reached level 6 3876 | -7/Recycling | Reached level 7 4176 | -7/Recycling | Reached level 8 4299 | -7/Recycling | Scanned before Scraplab entrance 4381 | -7/Recycling | Discovered new exit (range 9) 4695 | -7/Recycling | Reached level 9 4809 | -7/Recycling | Upgraded with Utility slot (x1) 4814 | -7/Recycling | Upgraded with Utility slot (x1) 4918 | -7/Recycling | Entered Scraplab 4929 | -7/Recycling | Discovered new exit (range 3) 4932 | -7/Recycling | Entered Scraptown 5125 | -7/Scraptown | Build established: Gunner 5263 | -7/Scraptown | Visited Spacefarers 5289 | -7/Scraptown | Visited CR-KLE's Repair Center 5301 | -7/Scraptown | Visited SPCMW 5331 | -7/Scraptown | Visited Comm Corps 5332 | -7/Scraptown | Heard Great Nut preacher, LISTEN AND RECITE! 5398 | -7/Scraptown | Visited Cyclists 5448 | -7/Scraptown | Visited Fellowship of the Rings 5491 | -7/Scraptown | Visited Symbiants 5690 | -7/Scraptown | CR-KLE repaired 5 parts 5768 | -7/Scraptown | Scanned Subdweller tech in exchange for log data 5772 | -7/Scraptown | Learned location of 1 exit from Factory 6249 | -7/Scraptown | Attacked by Scraptown defenders 6457 | -7/Scraptown | Core integrity fell below 50% 6501 | -7/Scraptown | Core integrity fell below 20% 6507 | -7/Scraptown | Destroyed Triborg 6524 | -7/Scraptown | Found Tri-treads 6533 | -7/Scraptown | Found Tri-treads 6550 | -7/Scraptown | Found Prototype Ballistic Cannon 6550 | -7/Scraptown | Identified Siege Cannon 6590 | -7/Scraptown | Found Siege Articulator 6605 | -7/Scraptown | Found Siege Articulator 6810 | -7/Scraptown | Destroyed 8 combat bots 6836 | -7/Scraptown | Build established: Scavenger-Gunner 6886 | -7/Scraptown | Destroyed 8 combat bots 7210 | -7/Scraptown | Found Prototype Device 7210 | -7/Scraptown | Identified Exp. Recalibrator 7859 | -7/Scraptown | Destroyed 33 combat bots 7974 | -7/Scraptown | Destroyed 17 combat bots 7988 | -7/Scraptown | Visited Derelict Rescue Squad 8035 | -7/Scraptown | Visited Curators Association 8065 | -7/Scraptown | Visited A0-MCA Data Center 8086 | -7/Scraptown | Visited Scrap Suit Storage 8102 | -7/Scraptown | Visited DA-N13 Charitable Foundation 8116 | -7/Scraptown | Found DCF Scrap (28 items) 8142 | -7/Scraptown | Visited Analyses Database 8221 | -7/Scraptown | Visited Scrapoid Research Area 8525 | -7/Scraptown | Found Prototype Processor 8525 | -7/Scraptown | Identified Expert System 8598 | -7/Scraptown | Discovered new exit (range 3) 8882 | -7/Scraptown | Found Prototype Leg 8882 | -7/Scraptown | Identified Potential Leg 9072 | -7/Scraptown | Entered Factory 9073 | -5/Factory | Identified exit to Extension 9073 | -5/Factory | Core integrity fell below 50% 9074 | -5/Factory | Reached level 10 9074 | -5/Factory | Reached level 11 9074 | -5/Factory | Reached level 12 9074 | -5/Factory | Reached level 13 9074 | -5/Factory | Reached level 14 9074 | -5/Factory | Reached level 15 9076 | -5/Factory | Upgraded with Propulsion slot (x2) 9164 | -5/Factory | Upgraded with Power slot (x1) 9186 | -5/Factory | Reached level 16 9510 | -5/Factory | Upgraded with Utility slot (x1) 9517 | -5/Factory | Upgraded with Utility slot (x1) 9845 | -5/Factory | Discovered exit to Extension (range 12) 9952 | -5/Factory | Reached level 17 10082 | -5/Factory | Entered Extension 10139 | -5/Extension | Rescued a captive Derelict 10154 | -5/Extension | Rescued a captive Derelict 10170 | -5/Extension | Rescued a captive Derelict 10185 | -5/Extension | Rescued a captive Derelict 10321 | -5/Extension | Rescued a captive Derelict 10323 | -5/Extension | Rescued a captive Derelict 10349 | -5/Extension | Rescued a captive Derelict 10350 | -5/Extension | Rescued a captive Derelict 10411 | -5/Extension | Reached level 18 10434 | -5/Extension | Spotted B-75 Beast 10462 | -5/Extension | Destroyed B-75 Beast 10465 | -5/Extension | Spotted B-75 Beast 10486 | -5/Extension | Destroyed B-75 Beast 10501 | -5/Extension | Lost 6 allies 10573 | -5/Extension | Rescued a captive Derelict 10573 | -5/Extension | Rescued a captive Derelict 10639 | -5/Extension | Rescued a captive Derelict 10764 | -5/Extension | Reached level 19 10812 | -5/Extension | Identified exit to Cetus 11056 | -5/Extension | Rescued a captive Derelict 11063 | -5/Extension | Rescued a captive Derelict 11199 | -5/Extension | Rescued A7 11312 | -5/Extension | Discovered new exit (range 17) 11321 | -5/Extension | Build established: Commander-Gunner 11427 | -5/Extension | Entered Cetus 11427 | -5/Cetus | Accompanied by 9 allies (A7) 11432 | -5/Cetus | Acquired a Cetus Manufacturing Module code from A7 11444 | -5/Cetus | Spotted Cetus Guard 11444 | -5/Cetus | Spotted Cetus Guard 11446 | -5/Cetus | Spotted Cetus Guard 11447 | -5/Cetus | Allies destroyed Cetus Guard 11448 | -5/Cetus | Spotted Cetus Guard 11451 | -5/Cetus | Destroyed Cetus Guard 11454 | -5/Cetus | Reached level 20 11454 | -5/Cetus | Allies destroyed Cetus Guard 11454 | -5/Cetus | Allies destroyed Cetus Guard 11486 | -5/Cetus | Upgraded with Utility slot (x1) 11521 | -5/Cetus | Started Cetus Manufacturing Module 11546 | -5/Cetus | Manufactured an Enhanced Grunt 11571 | -5/Cetus | Manufactured an Enhanced Grunt 11596 | -5/Cetus | Manufactured an Enhanced Grunt 11621 | -5/Cetus | Manufactured an Enhanced Grunt 11646 | -5/Cetus | Manufactured an Enhanced Grunt 11703 | -5/Cetus | Discovered new exit (range 17) 11735 | -5/Cetus | Spotted Cetus Guard 11736 | -5/Cetus | Spotted Cetus Guard 11739 | -5/Cetus | Spotted Cetus Guard 11739 | -5/Cetus | Spotted Cetus Guard 11754 | -5/Cetus | Destroyed Cetus Guard 11754 | -5/Cetus | Allies destroyed Cetus Guard 11758 | -5/Cetus | Allies destroyed Cetus Guard 11758 | -5/Cetus | Allies destroyed Cetus Guard 11774 | -5/Cetus | Discovered new exit (range 18) 11784 | -5/Cetus | Met Revision 17 11868 | -5/Cetus | Reached level 21 11909 | -5/Cetus | Upgraded with Weapon slot (x1) 11958 | -5/Cetus | Entered Archives 11958 | -5/Archives | Accompanied by 9 allies (A7) 12011 | -5/Archives | Discovered new exit (range 17) 12034 | -5/Archives | Entered Hub_04(d) 12034 | -5/Hub_04(d) | Accompanied by 6 allies 12052 | -5/Hub_04(d) | Discovered new exit (range 8) 12084 | -5/Hub_04(d) | Build established: Scavenger-Gunner 12167 | -5/Hub_04(d) | Reached level 22 12217 | -5/Hub_04(d) | Spotted B-75 Beast 12232 | -5/Hub_04(d) | Destroyed B-75 Beast 12496 | -5/Hub_04(d) | Discovered new exit (range 18) 12586 | -5/Hub_04(d) | Discovered new exit (range 5) 12634 | -5/Hub_04(d) | First assault squad dispatched 13812 | -5/Hub_04(d) | Build established: Hacker-Gunner 13829 | -5/Hub_04(d) | Network Hub disabled 13831 | -5/Hub_04(d) | Network Hub disabled 13831 | -5/Hub_04(d) | Reached level 23 14006 | -5/Hub_04(d) | Spotted Lightning 14008 | -5/Hub_04(d) | Spotted Lightning 14010 | -5/Hub_04(d) | Spotted Lightning 14029 | -5/Hub_04(d) | Destroyed Lightning 14034 | -5/Hub_04(d) | System corruption reached 10% 14051 | -5/Hub_04(d) | Destroyed Lightning 14055 | -5/Hub_04(d) | Destroyed Lightning 14114 | -5/Hub_04(d) | Spotted Lightning 14117 | -5/Hub_04(d) | Spotted Lightning 14124 | -5/Hub_04(d) | Spotted Lightning 14134 | -5/Hub_04(d) | Entered Factory 14163 | -4/Factory | Core integrity fell below 50% 14238 | -4/Factory | Identified exit to Upper Caves 14238 | -4/Factory | Identified exit to Armory 14248 | -4/Factory | Reached level 24 14695 | -4/Factory | Destroyed 8 combat bots 14990 | -4/Factory | Reached level 25 15016 | -4/Factory | Upgraded with Utility slot (x1) 15212 | -4/Factory | Build established: Scavenger-Tank 15516 | -4/Factory | Cargo convoy interrupted 15680 | -4/Factory | Upgraded with Weapon slot (x1) 15709 | -4/Factory | Build established: Scavenger-Gunner 16184 | -4/Factory | First assault squad dispatched 16189 | -4/Factory | Reached level 26 16303 | -4/Factory | Entered Upper Caves 16506 | -4/Upper Caves | Discovered new exit (range 18) 16512 | -4/Upper Caves | Learned Research emergency access door positions 16563 | -4/Upper Caves | Attracted the attention of an 0b10 checkpoint 17531 | -4/Upper Caves | Entered another Upper Caves area 17754 | -4/Upper Caves | Discovered new exit (range 7) 18066 | -4/Upper Caves | Discovered new exit (range 6) 18235 | -4/Upper Caves | Learned Research terminal intel 18848 | -4/Upper Caves | Entered Warlord 18896 | -4/Warlord | Discovered new exit (range 8) 19045 | -4/Warlord | Warlord's base attacked by MAIN.C 19179 | -4/Warlord | Reached level 27 19226 | -4/Warlord | Destroyed 16 combat bots 19309 | -4/Warlord | Destroyed 16 combat bots 19347 | -4/Warlord | Spotted Striker 19351 | -4/Warlord | Destroyed Striker 19363 | -4/Warlord | Spotted Executioner 19371 | -4/Warlord | Destroyed Executioner 19395 | -4/Warlord | Warlord forces counterattacked 19412 | -4/Warlord | Destroyed 17 combat bots 19452 | -4/Warlord | Spotted Executioner 19452 | -4/Warlord | Spotted Striker 19473 | -4/Warlord | Spotted Striker 19485 | -4/Warlord | Destroyed Striker 19491 | -4/Warlord | Destroyed Executioner 19516 | -4/Warlord | Destroyed 12 combat bots 19521 | -4/Warlord | Lost 5 allies 19545 | -4/Warlord | Spotted Executioner 19615 | -4/Warlord | Lost 15 allies 19646 | -4/Warlord | Spotted Striker 19646 | -4/Warlord | Spotted Striker 19647 | -4/Warlord | Spotted Striker 19671 | -4/Warlord | Destroyed Striker 19675 | -4/Warlord | Destroyed Striker 19675 | -4/Warlord | Reached level 28 19679 | -4/Warlord | Destroyed Striker 19720 | -4/Warlord | Warlord base infiltrated, sounded retreat 19723 | -4/Warlord | Lost 8 allies 19726 | -4/Warlord | Destroyed 13 combat bots 19764 | -4/Warlord | Spotted Executioner 19767 | -4/Warlord | Destroyed Executioner 19807 | -4/Warlord | Met Warlord 19839 | -4/Warlord | Entered Proximity Caves 20003 | -3/Proximity Caves | Attracted the attention of an 0b10 outpost 20730 | -3/Proximity Caves | Attracted the attention of an 0b10 checkpoint 20873 | -3/Proximity Caves | Spotted B-86 Titan 20889 | -3/Proximity Caves | Destroyed B-86 Titan 20945 | -3/Proximity Caves | Reached level 29 21012 | -3/Proximity Caves | Discovered new exit (range 21) 21106 | -3/Proximity Caves | Entered Research 21106 | -3/Research | Accompanied by 1 ally 21108 | -3/Research | Loaded intel: 116 machine locations 21109 | -3/Research | Loaded intel: 24 terminal locations 21168 | -3/Research | Identified exit to Testing 21306 | -3/Research | Revision forces began assault on 0b10 21324 | -3/Research | Spotted B-86 Titan 21430 | -3/Research | Met up with Revision 17++ 21491 | -3/Research | Destroyed B-86 Titan 21806 | -3/Research | Research terminal network offline 22073 | -3/Research | Fabricated X-77 Beamer (x2) 22100 | -3/Research | Spotted Executioner 22101 | -3/Research | Spotted Striker 22109 | -3/Research | Upgraded with Utility slot (x1) 22113 | -3/Research | Destroyed Striker 22123 | -3/Research | Lost 3 allies 22216 | -3/Research | Entered Testing 22216 | -3/Testing | Accompanied by 3 allies 22218 | -3/Testing | Reached level 30 22254 | -3/Testing | Found Prototype Energy Cannon 22254 | -3/Testing | Identified Null Cannon 22281 | -3/Testing | Discovered new exit (range 20) 22300 | -3/Testing | Found Prototype Energy Gun 22300 | -3/Testing | Identified Tachyon Dispersion Ray 22354 | -3/Testing | Found Prototype Energy Cannon 22354 | -3/Testing | Identified Potential Cannon 22357 | -3/Testing | Found Prototype Energy Cannon 22357 | -3/Testing | Identified Imp. Potential Cannon 22497 | -3/Testing | P-80 Master assimilated allied H-77 Assassin 22940 | -3/Testing | Found Prototype Ballistic Cannon 22940 | -3/Testing | Identified Omega Cannon 23131 | -3/Testing | Found Prototype Device 23131 | -3/Testing | Identified Exp. Thermal Shield 23213 | -3/Testing | Spotted PG-9SOPEIGBCO 23223 | -3/Testing | Destroyed PG-9SOPEIGBCO 23389 | -3/Testing | Spotted Striker 23390 | -3/Testing | Spotted Striker 23401 | -3/Testing | Destroyed Striker 23402 | -3/Testing | Spotted Alpha 7 23407 | -3/Testing | Destroyed Striker 23413 | -3/Testing | Destroyed Alpha 7 23929 | -3/Testing | Garrison activated, responded to threat 24385 | -3/Testing | Found Prototype Processor 24385 | -3/Testing | Identified Exp. Terrain Scan Processor 24642 | -3/Testing | Entered Research 24644 | -2/Research | Reached level 31 24780 | -2/Research | Identified exit to Access 25258 | -2/Research | Destroyed 8 combat bots 25476 | -2/Research | Reached level 32 25634 | -2/Research | Spotted B-90 Cyclops 25768 | -2/Research | Entered Access 25770 | -1/Access | Reached level 33 25952 | -1/Access | Destroyed 8 combat bots 26065 | -1/Access | First assault squad dispatched 26168 | -1/Access | Reached level 34 26269 | -1/Access | Core integrity fell below 50% 26304 | -1/Access | Destroyed 11 combat bots 26511 | -1/Access | High security lockdown imminent 26591 | -1/Access | High security lockdown engaged 26640 | -1/Access | Reached level 35 26703 | -1/Access | Destroyed 8 combat bots 26807 | -1/Access | Spotted Investigator 26807 | -1/Access | Destroyed Investigator 26858 | -1/Access | Destroyed 19 combat bots 26915 | -1/Access | Spotted Executioner 26940 | -1/Access | Destroyed Executioner 27017 | -1/Access | Spotted Executioner 27019 | -1/Access | Destroyed 13 combat bots 27019 | -1/Access | Spotted Executioner 27020 | -1/Access | Spotted Executioner 27020 | -1/Access | Spotted Striker 27021 | -1/Access | Spotted Executioner 27047 | -1/Access | Destroyed Striker 27071 | -1/Access | Destroyed Executioner 27074 | -1/Access | Core integrity fell below 20% 27077 | -1/Access | Destroyed Executioner 27079 | -1/Access | Reached level 36 27079 | -1/Access | Destroyed Executioner 27085 | -1/Access | Destroyed Executioner 27099 | -1/Access | Spotted Striker 27099 | -1/Access | Spotted Striker 27099 | -1/Access | Spotted Executioner 27099 | -1/Access | Spotted Executioner 27102 | -1/Access | Spotted Executioner 27136 | -1/Access | Destroyed 12 combat bots 27140 | -1/Access | Self-destructed Last Messages --------------- 27120_ Penetrated by Slug. 27120_ Slug penetrates Striker. 27121_ The unstable cave ceiling collapses. 27122_ Slug penetrates H-88 Terminator. 27123_ Penetrated by Slug. 27123_ Slug penetrates G-73 Enforcer. 27124_ Critical hit (Burn: +37). 27124_ Penetrated by Slug. 27126_ M-36 Artificer repairs H-88 Terminator. 27127_ Slug penetrates Wall. 27131_ Penetrated by Slug. 27135_ Slug penetrates Wall. 27135_ Slammed into G-73 Enforcer. 27136_ Critical hit (Burn: +37). 27136_ Penetrated by Slug. 27137_ Slammed into G-73 Enforcer. 27138_ G-73 Enforcer knocked back. 27139_ System corrupted: Matter fused (-7). 27139_ Acquired 5 matter. 27139_ Slammed into G-73 Enforcer. Map ----- +----------------------------------------------------+ | ?????????????????????????????????????? | | ?????????????????????????????????????? | | ?????????????????????????????????????? | | ?????????????????????????????????????? | | ?????????????????????????????????????? | | ?????????????????????????????????????? | | ?????????????????????????????????????? | | ?????????????????????????????????????? | | ?????????????????????????????????????? | | ?????????????????????????????????????? | | ?????????????????????????????????????? | | ?????????????????????????????????????? | | ?????????????????????????????????????? | | ?????????????????????????????????????? | | ?????????????????????????????????????? | | ????????????#+#??????????????????????? | | ????????????# #??????????????????????? | | ????????????# #??????????????????????? | | ????????????# #??????????????????????? | | ????????????# #??????????????????????? | | ????????????# #??????????????????????? | | ????????????# #??????????????????????? | | ????????????+ +??????????????????????? | | ????????????#g#??????????????????????? | | ????????????#g#??????????????????????? | | ????????????#@#??????????????????????? | | ????????????# #??????????????????????? | | ????????????#g##+######+#############? | | ????????????# ? | | ????????????# | | ????????????# K | | ????????????# | | ????????????# | | ????????????####"######+###########??? | | ????????????# # #???????? | | ????????????# * #???????? | | ????????????# #???????? | | ????????????# # #???????? | | ????????????# #???????? | | ????????????# #???????? | | ????????????# % #???????? | | ????????????# ] #???????? | | ????????????# =[%# #?#+#???? | | ????????????## %%* #?# #???? | | ?????????????#### |!# #?# #???? | | ????????????????# =#########?# #???? | | ????????????????# ########### ##### | | ????????????????# !!!=! %!%=% % "% | | ????????????????#+##""###"|[=% % | | ????????????????? !%%!!??# % % | +----------------------------------------------------+ Best States ------------- Heat Dissipation 91 Energy Generation 55 Energy Capacity 1770 Matter Stores 600 Matter Capacity 600 Sight Range 21 Terrain Scan Density 10 EM Shielding 3 Armor Coverage 1650 Resistance: KI 40 Resistance: TH 40 Resistance: EX 40 Resistance: EM 20 Resistance: I 20 Resistance: S 20 Resistance: P 20 Propulsion Shielding 33 Utility Shielding 15 Weapon Shielding 33 Evasion (%) 63 Target Analysis 5 Core Analysis 6 Armor Integrity Analysis 40 Recoil Reduction 6 Particle Charging 20 Kinecelleration 30 Offensive Hacking 25 Defensive Hacking 10 Item Schematics ----------------- Thermal Defense Suite | -3/Testing | Archive Adv. EM Disruption Field | -3/Testing | Archive Prc. Phase Gun | -3/Testing | Archive Robot Schematics ------------------ R-06 Scavenger | -3/Testing | Archive R-10 Processor | -3/Testing | Archive Fabricated ------------ X-77 Beamer | x2 | -3/Research | Preloaded Alien Tech Used ----------------- None Achievements -------------- None Challenges ------------ None RPGLIKE | -11 -10 -10 -10 -7 -7 -5 -5 -5 -5 -5 -4 -4 -4 -4 -3 -3 -3 -2 -1 --------- Run | Yrd Mat Min Sub Rec Scr Fac Ext Cet Arc Hub Fac Upp Upp War Pro Res Tes Res Acc Levels Raised 35 | . 1 . 2 5 . 8 2 2 . 2 3 . . 2 1 . 1 2 4 XP Earned 56636 | 4000 1874 500 2165 7634 649 11590 3185 2412 610 2522 4504 141 519 2367 1376 1099 1215 2527 5747 XP Spent 56225 | 2000 2970 500 1530 1900 7030 11300 400 4200 . 1500 5600 1575 . 2100 . 2600 . 1600 9420 Upgrades 117 | 4 9 1 3 2 30 13 2 3 . 3 10 6 . 3 . 1 . 1 26 Power Slot 2 | 1 . . . . . 1 . . . . . . . . . . . . . Propulsion Slot 5 | 1 2 . . . . 2 . . . . . . . . . . . . . Utility Slot 8 | 1 . . . 2 . 2 . 1 . . 1 . . . . 1 . . . Weapon Slot 4 | 1 . . 1 . . . . 1 . . 1 . . . . . . . . Core Integrity 40 | . . . . . 18 . . . . . . . . . . . . . 22 Heat Dissipation 11 | . 4 . 1 . 6 . . . . . . . . . . . . . . Matter Storage 6 | . . . . . . . . . . . . 6 . . . . . . . Mass Support 4 | . 1 . 1 . . . . 1 . . . . . . . . . 1 . Inventory Capacity 3 | . 1 1 . . 1 . . . . . . . . . . . . . . Sight Range 5 | . . . . . . . 2 . . . . . . 3 . . . . . Ranged Accuracy 4 | . 1 . . . 1 2 . . . . . . . . . . . . . Hack Attack % 3 | . . . . . . 1 . . . 2 . . . . . . . . . Hack Defense % 2 | . . . . . . 1 . . . 1 . . . . . . . . . KI Resistance % 4 | . . . . . . . . . . . 2 . . . . . . . 2 TH Resistance % 4 | . . . . . . . . . . . 2 . . . . . . . 2 EX Resistance % 4 | . . . . . . . . . . . 4 . . . . . . . . KI Damage % 4 | . . . . . . 4 . . . . . . . . . . . . . TH Damage % 4 | . . . . . 4 . . . . . . . . . . . . . . Protomatter Created 8405 | . 107 . 282 123 1435 109 280 69 50 301 1033 37 219 904 406 37 757 634 1622 Integrity Restored 16018 | . 87 . 789 261 2310 231 1794 476 52 556 2200 111 501 988 1074 693 1387 1157 1351 Core 11914 | . 54 . 617 121 2148 231 1155 107 11 400 1877 111 163 682 1050 452 770 636 1329 Parts 4104 | . 33 . 172 140 162 . 639 369 41 156 323 . 338 306 24 241 617 521 22 Protomatter Decayed 5222 | . 29 . 112 29 290 32 78 172 . 138 307 . 47 522 . 2476 149 121 720 Game ------ Seed DeuteriumMassMace Manual? 0 Play Time 05:06:11 Cumulative 147.8 hours Start 2024.10.09 @ 19:17:33 End 2024.10.11 @ 18:20:12 Sessions 9 Manual Loads 0 Difficulty Adventurer Special Mode Winter2019/RPGLIKE Game No. 81 Rogue 0 Adventurer 81 Explorer 0 Win Type - Total 6 Types 2/0/2/2/0/0/0/0/0 Lore% 64 Gallery% 59 Achievement% 71 Wizard Run 0 Options --------- Layout 2 ASCII 0 Keyboard 0 Movement Numpad Keybinds 0 Fullscreen 2 Font 24/Smallcaps Map View 50x44 Zoom Use 0% Tactical HUD 1 Map Filters NONE Filters NONE Steam 1 RUN: 598655c1-5812-421c-a345-4e43a59278fa